[Event "Titled Tuesday Blitz July 13 2021"]
[White "Krivonosov, Oleg"]
[Black "Gurevich, Dmitry"]
[WhiteFideId "11600349"]
[BlackFideId "2000407"]
[WhiteElo "2469"]
[BlackElo "2506"]
[Result "0-1"]
[Round "09"]
[TimeControl "180+1"]
[Date "2021.07.13"]
[WhiteClock "0:00:07"]
[BlackClock "0:00:25"]

1. Nf3 {[%clk 0:03:00]}  Nf6 {[%clk 0:02:59]} 2. c4 {[%clk 0:03:00]}  e6 {[%clk 0:02:58]} 3. g3 {[%clk 0:02:59]}  d5 {[%clk 0:02:58]} 4. d4 {[%clk 0:02:58]}  Be7 {[%clk 0:02:57]} 5. Bg2 {[%clk 0:02:57]}  O-O {[%clk 0:02:57]} 6. O-O {[%clk 0:02:58]}  c6 {[%clk 0:02:56]} 7. Qc2 {[%clk 0:02:57]}  b6 {[%clk 0:02:56]} 8. Rd1 {[%clk 0:02:56]}  Na6 {[%clk 0:02:51]} 9. Nc3 {[%clk 0:02:46]}  Bb7 {[%clk 0:02:41]} 10. b3 {[%clk 0:02:43]}  Rc8 {[%clk 0:02:38]} 11. e4 {[%clk 0:02:41]}  Qe8 {[%clk 0:01:55]} 12. Bb2 {[%clk 0:02:33]}  c5 {[%clk 0:01:38]} 13. exd5 {[%clk 0:02:32]}  exd5 {[%clk 0:01:38]} 14. dxc5 {[%clk 0:02:18]}  dxc4 {[%clk 0:01:31]} 15. Re1 {[%clk 0:02:02]}  Nxc5 {[%clk 0:01:23]} 16. bxc4 {[%clk 0:01:58]}  Ne6 {[%clk 0:01:23]} 17. Qf5 {[%clk 0:01:52]}  Rxc4 {[%clk 0:01:16]} 18. Rxe6 {[%clk 0:01:47]}  fxe6 {[%clk 0:01:14]} 19. Qxe6+ {[%clk 0:01:47]}  Qf7 {[%clk 0:01:14]} 20. Qxf7+ {[%clk 0:01:45]}  Rxf7 {[%clk 0:01:13]} 21. Ne5 {[%clk 0:01:44]}  Bxg2 {[%clk 0:01:11]} 22. Kxg2 {[%clk 0:01:45]}  Rb4 {[%clk 0:01:08]} 23. Ba3 {[%clk 0:01:31]}  Rd4 {[%clk 0:01:05]} 24. Bxe7 {[%clk 0:01:25]}  Rxe7 {[%clk 0:01:01]} 25. Nc6 {[%clk 0:01:25]}  Red7 {[%clk 0:00:59]} 26. Nxd4 {[%clk 0:01:24]}  Rxd4 {[%clk 0:00:58]} 27. a4 {[%clk 0:01:19]}  Rd2 {[%clk 0:00:56]} 28. Rd1 {[%clk 0:00:56]}  Rxd1 {[%clk 0:00:52]} 29. Nxd1 {[%clk 0:00:57]}  Kf7 {[%clk 0:00:51]} 30. Nc3 {[%clk 0:00:51]}  Ke6 {[%clk 0:00:49]} 31. Kf3 {[%clk 0:00:51]}  a6 {[%clk 0:00:44]} 32. Ke3 {[%clk 0:00:39]}  Nd5+ {[%clk 0:00:43]} 33. Kd4 {[%clk 0:00:35]}  Nxc3 {[%clk 0:00:42]} 34. Kxc3 {[%clk 0:00:36]}  Kd5 {[%clk 0:00:42]} 35. f3 {[%clk 0:00:16]}  b5 {[%clk 0:00:40]} 36. axb5 {[%clk 0:00:15]}  axb5 {[%clk 0:00:39]} 37. h4 {[%clk 0:00:15]}  Kc5 {[%clk 0:00:37]} 38. g4 {[%clk 0:00:13]}  b4+ {[%clk 0:00:36]} 39. Kd3 {[%clk 0:00:13]}  Kd5 {[%clk 0:00:34]} 40. f4 {[%clk 0:00:13]}  b3 {[%clk 0:00:33]} 41. f5 {[%clk 0:00:13]}  Ke5 {[%clk 0:00:31]} 42. h5 {[%clk 0:00:10]}  h6 {[%clk 0:00:27]} 43. g5 {[%clk 0:00:07]}  hxg5 {[%clk 0:00:25]} 0-1


[Site "https://www.chess.com"]

[Event "Titled Tuesday Blitz July 13 2021"]
[White "Madaminov, Mukhiddin"]
[Black "Quparadze, Giga"]
[WhiteFideId "14210703"]
[BlackFideId "13602250"]
[WhiteElo "2619"]
[BlackElo "2966"]
[Result "0-1"]
[Round "09"]
[TimeControl "180+1"]
[Date "2021.07.13"]
[WhiteClock "0:00:00"]
[BlackClock "0:00:06"]

1. e4 {[%clk 0:03:00]}  c5 {[%clk 0:02:59]} 2. Nf3 {[%clk 0:03:01]}  e6 {[%clk 0:02:59]} 3. d4 {[%clk 0:03:00]}  cxd4 {[%clk 0:03:00]} 4. Nxd4 {[%clk 0:03:01]}  a6 {[%clk 0:03:00]} 5. c4 {[%clk 0:03:00]}  Nf6 {[%clk 0:03:00]} 6. Nc3 {[%clk 0:03:00]}  Bb4 {[%clk 0:02:59]} 7. e5 {[%clk 0:02:38]}  Ne4 {[%clk 0:02:57]} 8. Qf3 {[%clk 0:02:37]}  Nxc3 {[%clk 0:02:49]} 9. bxc3 {[%clk 0:02:38]}  Be7 {[%clk 0:02:49]} 10. Qg3 {[%clk 0:02:33]}  Bf8 {[%clk 0:02:32]} 11. Bd3 {[%clk 0:02:32]}  d6 {[%clk 0:02:31]} 12. exd6 {[%clk 0:02:12]}  Qxd6 {[%clk 0:02:31]} 13. Bf4 {[%clk 0:02:12]}  Qa3 {[%clk 0:02:31]} 14. O-O {[%clk 0:02:03]}  Nc6 {[%clk 0:02:26]} 15. Nxc6 {[%clk 0:02:00]}  bxc6 {[%clk 0:02:27]} 16. Be4 {[%clk 0:01:56]}  Bd7 {[%clk 0:02:27]} 17. Rad1 {[%clk 0:01:54]}  Rc8 {[%clk 0:02:21]} 18. h4 {[%clk 0:01:18]}  Qa4 {[%clk 0:01:52]} 19. Qd3 {[%clk 0:01:06]}  c5 {[%clk 0:01:48]} 20. Bb7 {[%clk 0:01:07]}  Be7 {[%clk 0:01:28]} 21. Bxc8 {[%clk 0:01:04]}  Bxc8 {[%clk 0:01:29]} 22. Bd6 {[%clk 0:01:04]}  Bxh4 {[%clk 0:00:51]} 23. Bxc5 {[%clk 0:00:53]}  Qc6 {[%clk 0:00:49]} 24. Ba3 {[%clk 0:00:48]}  Bb7 {[%clk 0:00:41]} 25. Qh3 {[%clk 0:00:42]}  Bf6 {[%clk 0:00:35]} 26. Rb1 {[%clk 0:00:33]}  h5 {[%clk 0:00:32]} 27. Rfd1 {[%clk 0:00:33]}  Be5 {[%clk 0:00:29]} 28. c5 {[%clk 0:00:14]}  Bc7 {[%clk 0:00:26]} 29. Rd4 {[%clk 0:00:11]}  O-O {[%clk 0:00:24]} 30. Rxb7 {[%clk 0:00:11]}  Qxb7 {[%clk 0:00:23]} 31. Qxh5 {[%clk 0:00:11]}  Qb1+ {[%clk 0:00:19]} 32. Qd1 {[%clk 0:00:12]}  Qxa2 {[%clk 0:00:18]} 33. Bc1 {[%clk 0:00:13]}  Be5 {[%clk 0:00:16]} 34. Re4 {[%clk 0:00:11]}  Bxc3 {[%clk 0:00:16]} 35. c6 {[%clk 0:00:12]}  Ba5 {[%clk 0:00:09]} 36. Bf4 {[%clk 0:00:10]}  Qb2 {[%clk 0:00:07]} 37. c7 {[%clk 0:00:10]}  Qc3 {[%clk 0:00:07]} 38. Qd7 {[%clk 0:00:05]}  Qc2 {[%clk 0:00:05]} 39. Re3 {[%clk 0:00:05]}  Bd2 {[%clk 0:00:04]} 40. Re4 {[%clk 0:00:02]}  Qc1+ {[%clk 0:00:04]} 41. Kh2 {[%clk 0:00:02]}  Bxf4+ {[%clk 0:00:05]} 42. g3 {[%clk 0:00:03]}  Bxc7 {[%clk 0:00:05]} 43. Rg4 {[%clk 0:00:04]}  Bxg3+ {[%clk 0:00:05]} 44. Rxg3 {[%clk 0:00:03]}  Qf4 {[%clk 0:00:05]} 45. Qd3 {[%clk 0:00:02]}  Qxf2+ {[%clk 0:00:05]} 46. Rg2 {[%clk 0:00:03]}  Qf6 {[%clk 0:00:05]} 47. Kh1 {[%clk 0:00:04]}  Qh6+ {[%clk 0:00:05]} 48. Kg1 {[%clk 0:00:02]}  Qc1+ {[%clk 0:00:04]} 49. Kh2 {[%clk 0:00:03]}  Qf4+ {[%clk 0:00:05]} 50. Kg1 {[%clk 0:00:02]}  Rc8 {[%clk 0:00:06]} 51. Rxg7+ {[%clk 0:00:00]}  Kxg7 {[%clk 0:00:06]} 0-1


[Site "https://www.chess.com"]

[Event "Titled Tuesday Blitz July 13 2021"]
[White "Nasyrova, Ekaterina"]
[Black "Przybylski, Wojciech"]
[WhiteFideId "44157797"]
[BlackFideId "1117599"]
[WhiteElo "2115"]
[BlackElo "2317"]
[Result "0-1"]
[Round "09"]
[TimeControl "180+1"]
[Date "2021.07.13"]
[WhiteClock "0:01:04"]
[BlackClock "0:00:56"]

1. d4 {[%clk 0:03:00]}  Nf6 {[%clk 0:02:57]} 2. c4 {[%clk 0:03:00]}  g6 {[%clk 0:02:56]} 3. g3 {[%clk 0:03:00]}  d5 {[%clk 0:02:55]} 4. cxd5 {[%clk 0:02:59]}  Nxd5 {[%clk 0:02:55]} 5. Bg2 {[%clk 0:02:59]}  Bg7 {[%clk 0:02:55]} 6. Nc3 {[%clk 0:02:59]}  Nb6 {[%clk 0:02:54]} 7. Nf3 {[%clk 0:02:59]}  O-O {[%clk 0:02:54]} 8. e3 {[%clk 0:02:58]}  Nc6 {[%clk 0:02:51]} 9. O-O {[%clk 0:02:58]}  e5 {[%clk 0:02:50]} 10. d5 {[%clk 0:02:58]}  Ne7 {[%clk 0:02:49]} 11. e4 {[%clk 0:02:57]}  Nc4 {[%clk 0:02:47]} 12. Qe2 {[%clk 0:02:55]}  Nd6 {[%clk 0:02:47]} 13. Rd1 {[%clk 0:02:53]}  a5 {[%clk 0:02:45]} 14. Bg5 {[%clk 0:02:49]}  h6 {[%clk 0:02:43]} 15. Be3 {[%clk 0:02:45]}  b6 {[%clk 0:02:42]} 16. Rac1 {[%clk 0:02:43]}  Ba6 {[%clk 0:02:42]} 17. Qe1 {[%clk 0:02:42]}  Nc4 {[%clk 0:02:38]} 18. b3 {[%clk 0:02:41]}  Nd6 {[%clk 0:02:26]} 19. Qd2 {[%clk 0:02:31]}  Kh7 {[%clk 0:02:26]} 20. Nh4 {[%clk 0:02:28]}  f5 {[%clk 0:02:21]} 21. exf5 {[%clk 0:02:17]}  gxf5 {[%clk 0:02:21]} 22. f4 {[%clk 0:02:16]}  e4 {[%clk 0:02:14]} 23. Bd4 {[%clk 0:02:12]}  Ng8 {[%clk 0:02:12]} 24. Bxg7 {[%clk 0:02:11]}  Kxg7 {[%clk 0:02:10]} 25. Ne2 {[%clk 0:02:10]}  Bxe2 {[%clk 0:02:02]} 26. Qxe2 {[%clk 0:02:10]}  Rf7 {[%clk 0:02:00]} 27. Rc6 {[%clk 0:02:03]}  Ne7 {[%clk 0:01:57]} 28. Rc2 {[%clk 0:02:02]}  Ng6 {[%clk 0:01:31]} 29. Qd2 {[%clk 0:02:00]}  Nxh4 {[%clk 0:01:28]} 30. gxh4 {[%clk 0:01:59]}  Qxh4 {[%clk 0:01:27]} 31. Kh1 {[%clk 0:01:58]}  Kh7 {[%clk 0:01:26]} 32. Rdc1 {[%clk 0:01:54]}  Rc8 {[%clk 0:01:19]} 33. Rc6 {[%clk 0:01:52]}  Qf6 {[%clk 0:01:09]} 34. Bf1 {[%clk 0:01:36]}  Qg7 {[%clk 0:01:03]} 35. Rxd6 {[%clk 0:01:31]}  Rg8 {[%clk 0:01:02]} 36. Bh3 {[%clk 0:01:13]}  cxd6 {[%clk 0:01:01]} 37. Qe3 {[%clk 0:01:11]}  Rc7 {[%clk 0:00:59]} 38. Rc6 {[%clk 0:01:06]}  Rxc6 {[%clk 0:00:57]} 39. dxc6 {[%clk 0:01:04]}  Qa1+ {[%clk 0:00:56]} 0-1


[Site "https://www.chess.com"]

[Event "Titled Tuesday Blitz July 13 2021"]
[White "Navalgund, Niranjan"]
[Black "Semcesen, Daniel"]
[WhiteFideId "5030854"]
[BlackFideId "1706993"]
[WhiteElo "2290"]
[BlackElo "2505"]
[Result "0-1"]
[Round "09"]
[TimeControl "180+1"]
[Date "2021.07.13"]
[WhiteClock "0:01:47"]
[BlackClock "0:00:59"]

1. e4 {[%clk 0:03:00]}  e5 {[%clk 0:02:59]} 2. Nf3 {[%clk 0:02:59]}  Nc6 {[%clk 0:02:58]} 3. Nc3 {[%clk 0:03:00]}  Nf6 {[%clk 0:02:57]} 4. Nxe5 {[%clk 0:03:01]}  Nxe5 {[%clk 0:02:56]} 5. d4 {[%clk 0:03:01]}  Nc6 {[%clk 0:02:52]} 6. d5 {[%clk 0:02:58]}  Bb4 {[%clk 0:02:43]} 7. dxc6 {[%clk 0:02:57]}  O-O {[%clk 0:02:42]} 8. Bd3 {[%clk 0:02:53]}  bxc6 {[%clk 0:02:38]} 9. O-O {[%clk 0:02:51]}  d5 {[%clk 0:02:38]} 10. e5 {[%clk 0:02:51]}  Ng4 {[%clk 0:02:34]} 11. Bf4 {[%clk 0:02:50]}  f6 {[%clk 0:02:30]} 12. exf6 {[%clk 0:02:46]}  Nxf6 {[%clk 0:02:30]} 13. Ne2 {[%clk 0:02:41]}  Bd6 {[%clk 0:02:23]} 14. Bg3 {[%clk 0:02:23]}  Rb8 {[%clk 0:02:19]} 15. b3 {[%clk 0:02:21]}  Ne4 {[%clk 0:02:04]} 16. Bxd6 {[%clk 0:02:17]}  Nxd6 {[%clk 0:02:02]} 17. Nd4 {[%clk 0:02:17]}  Bd7 {[%clk 0:01:59]} 18. Qh5 {[%clk 0:02:17]}  g6 {[%clk 0:01:50]} 19. Bxg6 {[%clk 0:02:07]}  hxg6 {[%clk 0:01:51]} 20. Qxg6+ {[%clk 0:02:08]}  Kh8 {[%clk 0:01:51]} 21. Qh6+ {[%clk 0:02:06]}  Kg8 {[%clk 0:01:51]} 22. Qg6+ {[%clk 0:02:07]}  Kh8 {[%clk 0:01:51]} 23. f3 {[%clk 0:02:07]}  Qf6 {[%clk 0:01:48]} 24. Qh5+ {[%clk 0:02:06]}  Kg8 {[%clk 0:01:44]} 25. Rad1 {[%clk 0:02:07]}  Rbe8 {[%clk 0:01:42]} 26. f4 {[%clk 0:02:04]}  Re4 {[%clk 0:01:36]} 27. Rf3 {[%clk 0:02:01]}  Rf7 {[%clk 0:01:29]} 28. Rg3+ {[%clk 0:02:00]}  Rg7 {[%clk 0:01:29]} 29. Rxg7+ {[%clk 0:01:57]}  Qxg7 {[%clk 0:01:26]} 30. Nf3 {[%clk 0:01:57]}  Bg4 {[%clk 0:01:17]} 31. Qh4 {[%clk 0:01:50]}  Bxf3 {[%clk 0:01:15]} 32. Rd2 {[%clk 0:01:50]}  Qa1+ {[%clk 0:01:04]} 33. Kf2 {[%clk 0:01:47]}  Qe1+ {[%clk 0:01:03]} 34. Kxf3 {[%clk 0:01:47]}  Qxh4 {[%clk 0:00:59]} 0-1


[Site "https://www.chess.com"]

[Event "Titled Tuesday Blitz July 13 2021"]
[White "Nguyen, Hong Ngoc"]
[Black "Novoselski, Zoran"]
[WhiteFideId "12403083"]
[BlackFideId "901970"]
[WhiteElo "1830"]
[BlackElo "2327"]
[Result "0-1"]
[Round "09"]
[TimeControl "180+1"]
[Date "2021.07.13"]
[WhiteClock "0:00:17"]
[BlackClock "0:01:12"]

1. e4 {[%clk 0:03:00]}  d6 {[%clk 0:02:59]} 2. Nc3 {[%clk 0:03:00]}  Nf6 {[%clk 0:02:59]} 3. d4 {[%clk 0:03:00]}  e5 {[%clk 0:02:59]} 4. Nf3 {[%clk 0:02:58]}  Nbd7 {[%clk 0:02:58]} 5. Bc4 {[%clk 0:02:55]}  Be7 {[%clk 0:02:58]} 6. O-O {[%clk 0:02:54]}  O-O {[%clk 0:02:58]} 7. h3 {[%clk 0:02:53]}  c6 {[%clk 0:02:58]} 8. a4 {[%clk 0:02:43]}  b6 {[%clk 0:02:57]} 9. d5 {[%clk 0:02:41]}  c5 {[%clk 0:02:55]} 10. Re1 {[%clk 0:02:24]}  a6 {[%clk 0:02:52]} 11. Qd3 {[%clk 0:02:21]}  Re8 {[%clk 0:02:49]} 12. g3 {[%clk 0:02:13]}  Nf8 {[%clk 0:02:47]} 13. Kh2 {[%clk 0:02:13]}  h6 {[%clk 0:02:42]} 14. Rb1 {[%clk 0:01:58]}  N6h7 {[%clk 0:02:38]} 15. b4 {[%clk 0:01:49]}  cxb4 {[%clk 0:02:36]} 16. Rxb4 {[%clk 0:01:49]}  Qc7 {[%clk 0:02:31]} 17. Be3 {[%clk 0:01:46]}  Nd7 {[%clk 0:02:28]} 18. Reb1 {[%clk 0:01:44]}  Nc5 {[%clk 0:02:24]} 19. Bxc5 {[%clk 0:01:41]}  bxc5 {[%clk 0:02:23]} 20. Rb6 {[%clk 0:01:39]}  Bd8 {[%clk 0:02:20]} 21. Rc6 {[%clk 0:01:01]}  Qd7 {[%clk 0:02:19]} 22. Rxc8 {[%clk 0:00:53]}  Qxc8 {[%clk 0:02:13]} 23. Ne2 {[%clk 0:00:49]}  Ng5 {[%clk 0:02:02]} 24. Nfg1 {[%clk 0:00:48]}  Rf8 {[%clk 0:01:52]} 25. h4 {[%clk 0:00:48]}  Nh7 {[%clk 0:01:50]} 26. f4 {[%clk 0:00:30]}  exf4 {[%clk 0:01:46]} 27. Nxf4 {[%clk 0:00:30]}  Nf6 {[%clk 0:01:45]} 28. Nf3 {[%clk 0:00:30]}  Ng4+ {[%clk 0:01:41]} 29. Kg2 {[%clk 0:00:30]}  Bf6 {[%clk 0:01:41]} 30. Rb6 {[%clk 0:00:28]}  Qd7 {[%clk 0:01:37]} 31. Rc6 {[%clk 0:00:27]}  Ne5 {[%clk 0:01:32]} 32. Nxe5 {[%clk 0:00:27]}  Bxe5 {[%clk 0:01:32]} 33. Ne2 {[%clk 0:00:20]}  f5 {[%clk 0:01:25]} 34. exf5 {[%clk 0:00:18]}  Rxf5 {[%clk 0:01:24]} 35. Bxa6 {[%clk 0:00:17]}  Raf8 {[%clk 0:01:22]} 36. Qe3 {[%clk 0:00:17]}  Qf7 {[%clk 0:01:18]} 37. Qe4 {[%clk 0:00:18]}  Rf2+ {[%clk 0:01:16]} 38. Kh3 {[%clk 0:00:18]}  Qd7+ {[%clk 0:01:15]} 39. Qg4 {[%clk 0:00:17]}  Rh2+ {[%clk 0:01:12]} 40. Kxh2 {[%clk 0:00:17]}  Qxg4 {[%clk 0:01:12]} 0-1


[Site "https://www.chess.com"]

[Event "Titled Tuesday Blitz July 13 2021"]
[White "Nguyen Hong Nhung"]
[Black "Tong, Hai Anh"]
[WhiteFideId "12412201"]
[BlackFideId "12412805"]
[WhiteElo "1661"]
[BlackElo "1467"]
[Result "0-1"]
[Round "09"]
[TimeControl "180+1"]
[Date "2021.07.13"]
[WhiteClock "0:00:04"]
[BlackClock "0:00:12"]

1. e4 {[%clk 0:03:00]}  c6 {[%clk 0:02:56]} 2. d4 {[%clk 0:03:00]}  d5 {[%clk 0:02:46]} 3. f3 {[%clk 0:03:00]}  dxe4 {[%clk 0:02:45]} 4. fxe4 {[%clk 0:03:01]}  e5 {[%clk 0:02:45]} 5. Nf3 {[%clk 0:03:02]}  Nd7 {[%clk 0:02:38]} 6. Bc4 {[%clk 0:03:01]}  Ngf6 {[%clk 0:02:38]} 7. O-O {[%clk 0:02:53]}  Bd6 {[%clk 0:02:36]} 8. dxe5 {[%clk 0:02:43]}  Nxe5 {[%clk 0:02:33]} 9. Nxe5 {[%clk 0:02:41]}  Bxe5 {[%clk 0:02:33]} 10. Qxd8+ {[%clk 0:02:29]}  Kxd8 {[%clk 0:02:34]} 11. Bg5 {[%clk 0:02:26]}  Ke7 {[%clk 0:02:29]} 12. c3 {[%clk 0:02:26]}  Be6 {[%clk 0:02:29]} 13. Nd2 {[%clk 0:02:18]}  h6 {[%clk 0:02:16]} 14. Bxf6+ {[%clk 0:02:13]}  gxf6 {[%clk 0:02:06]} 15. Bxe6 {[%clk 0:02:13]}  fxe6 {[%clk 0:02:05]} 16. Nc4 {[%clk 0:02:07]}  Bc7 {[%clk 0:02:03]} 17. Rad1 {[%clk 0:02:03]}  Rad8 {[%clk 0:02:02]} 18. g3 {[%clk 0:01:55]}  Rxd1 {[%clk 0:01:36]} 19. Rxd1 {[%clk 0:01:56]}  Rg8 {[%clk 0:01:27]} 20. Kf2 {[%clk 0:01:47]}  b5 {[%clk 0:01:25]} 21. Nd2 {[%clk 0:01:41]}  h5 {[%clk 0:01:21]} 22. Nf3 {[%clk 0:01:36]}  a5 {[%clk 0:00:59]} 23. Kg2 {[%clk 0:01:35]}  c5 {[%clk 0:00:55]} 24. Kh3 {[%clk 0:01:33]}  a4 {[%clk 0:00:43]} 25. Kh4 {[%clk 0:00:50]}  Rg4+ {[%clk 0:00:40]} 26. Kxh5 {[%clk 0:00:50]}  Rxe4 {[%clk 0:00:40]} 27. Rd2 {[%clk 0:00:35]}  Ba5 {[%clk 0:00:33]} 28. g4 {[%clk 0:00:28]}  Re3 {[%clk 0:00:20]} 29. Rf2 {[%clk 0:00:28]}  a3 {[%clk 0:00:17]} 30. bxa3 {[%clk 0:00:26]}  Bxc3 {[%clk 0:00:17]} 31. h4 {[%clk 0:00:21]}  Bd4 {[%clk 0:00:15]} 32. Nxd4 {[%clk 0:00:17]}  cxd4 {[%clk 0:00:15]} 33. Kg6 {[%clk 0:00:13]}  d3 {[%clk 0:00:13]} 34. h5 {[%clk 0:00:04]}  Rg3 {[%clk 0:00:12]} 0-1


[Site "https://www.chess.com"]

[Event "Titled Tuesday Blitz July 13 2021"]
[White "Omariev, Maksim"]
[Black "Manukyan, Artyom"]
[WhiteFideId "4193423"]
[BlackFideId "13305786"]
[WhiteElo "2388"]
[BlackElo "2034"]
[Result "1-0"]
[Round "09"]
[TimeControl "180+1"]
[Date "2021.07.13"]
[WhiteClock "0:00:03"]
[BlackClock "0:00:02"]

1. g4 {[%clk 0:03:00]}  d5 {[%clk 0:02:50]} 2. Bg2 {[%clk 0:03:00]}  c6 {[%clk 0:02:50]} 3. g5 {[%clk 0:03:00]}  h6 {[%clk 0:02:49]} 4. g6 {[%clk 0:02:56]}  fxg6 {[%clk 0:02:47]} 5. d4 {[%clk 0:02:57]}  Nf6 {[%clk 0:02:46]} 6. Nf3 {[%clk 0:02:58]}  Bf5 {[%clk 0:02:35]} 7. c4 {[%clk 0:02:56]}  e6 {[%clk 0:02:33]} 8. Nc3 {[%clk 0:02:55]}  Bb4 {[%clk 0:02:33]} 9. Bd2 {[%clk 0:02:53]}  Bxc3 {[%clk 0:02:30]} 10. Bxc3 {[%clk 0:02:50]}  Ne4 {[%clk 0:02:31]} 11. Qb3 {[%clk 0:02:48]}  Qb6 {[%clk 0:02:30]} 12. Qa3 {[%clk 0:02:33]}  Nd7 {[%clk 0:02:21]} 13. Rc1 {[%clk 0:01:46]}  Qa6 {[%clk 0:02:19]} 14. Qxa6 {[%clk 0:01:43]}  bxa6 {[%clk 0:02:20]} 15. Bb4 {[%clk 0:01:36]}  Rb8 {[%clk 0:02:17]} 16. Ba3 {[%clk 0:01:34]}  Nb6 {[%clk 0:02:02]} 17. cxd5 {[%clk 0:01:25]}  cxd5 {[%clk 0:02:00]} 18. Ne5 {[%clk 0:01:21]}  Nd7 {[%clk 0:01:08]} 19. Nc6 {[%clk 0:01:14]}  Rc8 {[%clk 0:01:05]} 20. Bxe4 {[%clk 0:01:07]}  Bxe4 {[%clk 0:01:02]} 21. f3 {[%clk 0:01:07]}  Nb8 {[%clk 0:00:56]} 22. fxe4 {[%clk 0:00:57]}  Rxc6 {[%clk 0:00:55]} 23. Kd2 {[%clk 0:00:52]}  dxe4 {[%clk 0:00:48]} 24. Ke3 {[%clk 0:00:46]}  Kd7 {[%clk 0:00:26]} 25. Rcg1 {[%clk 0:00:45]}  g5 {[%clk 0:00:23]} 26. Kxe4 {[%clk 0:00:45]}  a5 {[%clk 0:00:15]} 27. h4 {[%clk 0:00:45]}  Na6 {[%clk 0:00:08]} 28. hxg5 {[%clk 0:00:44]}  h5 {[%clk 0:00:08]} 29. g6 {[%clk 0:00:42]}  Nb4 {[%clk 0:00:08]} 30. Rg5 {[%clk 0:00:41]}  Rc2 {[%clk 0:00:06]} 31. Rxa5 {[%clk 0:00:39]}  Nc6 {[%clk 0:00:05]} 32. Raxh5 {[%clk 0:00:33]}  Rxh5 {[%clk 0:00:04]} 33. Rxh5 {[%clk 0:00:33]}  Rxe2+ {[%clk 0:00:05]} 34. Kd3 {[%clk 0:00:20]}  Rg2 {[%clk 0:00:05]} 35. Rh7 {[%clk 0:00:19]}  Rxg6 {[%clk 0:00:04]} 36. Bf8 {[%clk 0:00:20]}  Ke8 {[%clk 0:00:04]} 37. Bxg7 {[%clk 0:00:19]}  Rg2 {[%clk 0:00:04]} 38. Bf6 {[%clk 0:00:14]}  Rg3+ {[%clk 0:00:02]} 39. Kc4 {[%clk 0:00:11]}  Rg2 {[%clk 0:00:03]} 40. Kc5 {[%clk 0:00:07]}  Rc2+ {[%clk 0:00:02]} 41. Kd6 {[%clk 0:00:07]}  Nb4 {[%clk 0:00:02]} 42. Re7+ {[%clk 0:00:05]}  Kf8 {[%clk 0:00:02]} 43. Rxa7 {[%clk 0:00:05]}  Nd3 {[%clk 0:00:02]} 44. b3 {[%clk 0:00:03]}  Re2 {[%clk 0:00:02]} 45. Be5 {[%clk 0:00:03]}  Nb4 {[%clk 0:00:01]} 46. Kxe6 {[%clk 0:00:03]}  Nd3 {[%clk 0:00:02]} 47. Ra8# {[%clk 0:00:03]} 1-0


[Site "https://www.chess.com"]